[Event "*** Titled Tuesday Blitz"]
[Site "Chess.com"]
[Date "2020.05.12"]
[Round "3"]
[White "Richarzard69"]
[Black "LizaSolovyova"]
[Result "0-1"]
[WhiteElo "2269"]
[BlackElo "2584"]
[TimeControl "180+1"]
[EndTime "10:28:42 PDT"]
[Termination "LizaSolovyova won by resignation"]

1. Nf3 {[%clk 0:03:00.9]} 1... f5 {[%clk 0:02:58.9]} 2. c4 {[%clk 0:02:55.8]}
2... Nf6 {[%clk 0:02:59.3]} 3. Nc3 {[%clk 0:02:56]} 3... e6 {[%clk 0:02:59.8]}
4. g3 {[%clk 0:02:56.3]} 4... Be7 {[%clk 0:03:00.7]} 5. Bg2 {[%clk 0:02:56.5]}
5... O-O {[%clk 0:03:01.6]} 6. O-O {[%clk 0:02:56.6]} 6... d6 {[%clk 0:03:02.5]}
7. b4 {[%clk 0:02:55.2]} 7... a5 {[%clk 0:03:01.9]} 8. b5 {[%clk 0:02:55.1]}
8... Qe8 {[%clk 0:03:01.8]} 9. a4 {[%clk 0:02:51.6]} 9... e5 {[%clk 0:02:54]}
10. d3 {[%clk 0:02:44.4]} 10... Qh5 {[%clk 0:02:52.2]} 11. e3 {[%clk 0:02:24.8]}
11... Nbd7 {[%clk 0:02:45.3]} 12. Ba3 {[%clk 0:02:19.6]} 12... g5 {[%clk
0:02:34.7]} 13. Nd2 {[%clk 0:02:16.6]} 13... g4 {[%clk 0:02:27.4]} 14. c5 {[%clk
0:01:50.2]} 14... dxc5 {[%clk 0:02:05.6]} 15. Nc4 {[%clk 0:01:49.3]} 15... Bd6
{[%clk 0:01:59.3]} 16. Nd5 {[%clk 0:01:22.3]} 16... Kh8 {[%clk 0:01:45.3]} 17.
b6 {[%clk 0:00:56.9]} 17... Nxd5 {[%clk 0:01:41.6]} 18. bxc7 {[%clk 0:00:56.7]}
18... Bxc7 {[%clk 0:01:22.3]} 19. Bxd5 {[%clk 0:00:56.3]} 19... Ra6 {[%clk
0:01:22.6]} 20. h4 {[%clk 0:00:24.4]} 20... f4 {[%clk 0:01:01.9]} 21. exf4
{[%clk 0:00:23.6]} 21... exf4 {[%clk 0:01:01.9]} 22. Bb2+ {[%clk 0:00:22.9]}
22... Raf6 {[%clk 0:00:52.4]} 23. Qe2 {[%clk 0:00:16.2]} 23... Qxd5 {[%clk
0:00:51.5]} 24. Qe4 {[%clk 0:00:12.9]} 24... Qxe4 {[%clk 0:00:42.8]} 25. dxe4
{[%clk 0:00:13.8]} 25... Kg8 {[%clk 0:00:43.1]} 26. Bxf6 {[%clk 0:00:13.1]}
26... Nxf6 {[%clk 0:00:44]} 27. Rad1 {[%clk 0:00:13.2]} 27... Nxe4 {[%clk
0:00:43.4]} 28. Rfe1 {[%clk 0:00:11.4]} 28... Bf5 {[%clk 0:00:42.4]} 29. gxf4
{[%clk 0:00:09.1]} 29... Bxf4 {[%clk 0:00:39.9]} 30. Ne3 {[%clk 0:00:10]} 30...
g3 {[%clk 0:00:31]} 31. fxg3 {[%clk 0:00:08.4]} 31... Bxg3 {[%clk 0:00:30.7]}
32. Nxf5 {[%clk 0:00:07.7]} 32... Bf2+ {[%clk 0:00:28.1]} 33. Kg2 {[%clk
0:00:07]} 33... Bxe1 {[%clk 0:00:28.5]} 34. Ne7+ {[%clk 0:00:06.2]} 34... Kf7
{[%clk 0:00:28.3]} 35. Rxe1 {[%clk 0:00:05.7]} 35... Kxe7 {[%clk 0:00:28.7]} 36.
Rxe4+ {[%clk 0:00:06.6]} 36... Kd6 {[%clk 0:00:29.3]} 37. Rg4 {[%clk 0:00:06.5]}
37... Rf7 {[%clk 0:00:29.2]} 38. Kg3 {[%clk 0:00:06.2]} 38... Kc6 {[%clk
0:00:28]} 39. h5 {[%clk 0:00:06.7]} 39... b5 {[%clk 0:00:28.4]} 40. axb5+ {[%clk
0:00:07.6]} 40... Kxb5 {[%clk 0:00:29.3]} 41. h6 {[%clk 0:00:07.9]} 41... Rf6
{[%clk 0:00:28.3]} 42. Rh4 {[%clk 0:00:05.6]} 42... a4 {[%clk 0:00:27.8]} 43.
Kg4 {[%clk 0:00:06.1]} 43... a3 {[%clk 0:00:26.9]} 44. Kg5 {[%clk 0:00:07]}
44... Ra6 {[%clk 0:00:27]} 45. Rh1 {[%clk 0:00:05.5]} 45... a2 {[%clk
0:00:27.4]} 46. Ra1 {[%clk 0:00:06.2]} 46... Kb4 {[%clk 0:00:27.9]} 47. Kf5
{[%clk 0:00:06.1]} 47... Kb3 {[%clk 0:00:28.2]} 48. Rxa2 {[%clk 0:00:06.3]}
48... Kxa2 {[%clk 0:00:28.2]} 0-1

[Event "*** Titled Tuesday Blitz"]
[Site "Chess.com"]
[Date "2020.05.12"]
[Round "3"]
[White "RaunakSadhwani2005"]
[Black "ClassyEl"]
[Result "1-0"]
[WhiteElo "2831"]
[BlackElo "2527"]
[TimeControl "180+1"]
[EndTime "10:28:43 PDT"]
[Termination "RaunakSadhwani2005 won on time"]

1. e4 {[%clk 0:03:00.9]} 1... d6 {[%clk 0:02:59.9]} 2. d4 {[%clk 0:03:00.4]}
2... Nf6 {[%clk 0:03:00.2]} 3. Nc3 {[%clk 0:03:01]} 3... c6 {[%clk 0:03:00.7]}
4. Nf3 {[%clk 0:03:00.3]} 4... Bg4 {[%clk 0:03:00.8]} 5. Be2 {[%clk 0:02:50.7]}
5... e6 {[%clk 0:03:01]} 6. O-O {[%clk 0:02:50.6]} 6... d5 {[%clk 0:03:01]} 7.
h3 {[%clk 0:02:47.4]} 7... Bh5 {[%clk 0:02:42.7]} 8. Ne5 {[%clk 0:02:43]} 8...
Bxe2 {[%clk 0:02:38.8]} 9. Qxe2 {[%clk 0:02:43.9]} 9... Nbd7 {[%clk 0:02:12.5]}
10. Bg5 {[%clk 0:02:35.5]} 10... Be7 {[%clk 0:02:10.1]} 11. Nxd7 {[%clk
0:02:30.3]} 11... Qxd7 {[%clk 0:02:04.5]} 12. e5 {[%clk 0:02:29.1]} 12... Ng8
{[%clk 0:02:04.3]} 13. Be3 {[%clk 0:02:29.5]} 13... Bb4 {[%clk 0:02:03.9]} 14.
Nd1 {[%clk 0:02:29.1]} 14... Ne7 {[%clk 0:02:03.1]} 15. c3 {[%clk 0:02:30]}
15... Ba5 {[%clk 0:02:03.5]} 16. f4 {[%clk 0:02:30.1]} 16... g6 {[%clk
0:02:02.2]} 17. Nf2 {[%clk 0:02:28.8]} 17... h5 {[%clk 0:02:02]} 18. g3 {[%clk
0:02:26.9]} 18... Nf5 {[%clk 0:01:59.2]} 19. Qf3 {[%clk 0:02:23.3]} 19... Bb6
{[%clk 0:01:58.4]} 20. Nd3 {[%clk 0:02:22.3]} 20... Qe7 {[%clk 0:01:57.1]} 21.
Bf2 {[%clk 0:02:21.5]} 21... g5 {[%clk 0:01:28.2]} 22. fxg5 {[%clk 0:02:15.6]}
22... Qxg5 {[%clk 0:01:19.3]} 23. Kh2 {[%clk 0:02:06.9]} 23... Bc7 {[%clk
0:01:15.1]} 24. Qf4 {[%clk 0:01:35.2]} 24... Qg7 {[%clk 0:01:12.2]} 25. Rg1
{[%clk 0:01:18.9]} 25... O-O-O {[%clk 0:01:12.1]} 26. Rae1 {[%clk 0:01:18.1]}
26... Rdg8 {[%clk 0:01:10.7]} 27. a4 {[%clk 0:01:12]} 27... Qh7 {[%clk
0:01:08.8]} 28. Qf3 {[%clk 0:00:58.1]} 28... Rg7 {[%clk 0:01:06.4]} 29. Nf4
{[%clk 0:00:52.9]} 29... Rg5 {[%clk 0:00:59.4]} 30. b4 {[%clk 0:00:49.2]} 30...
Rhg8 {[%clk 0:00:57.9]} 31. b5 {[%clk 0:00:49.1]} 31... cxb5 {[%clk 0:00:50.9]}
32. axb5 {[%clk 0:00:50]} 32... Kb8 {[%clk 0:00:51.5]} 33. Ra1 {[%clk
0:00:46.4]} 33... Ne7 {[%clk 0:00:37.1]} 34. Nd3 {[%clk 0:00:42]} 34... Rf5
{[%clk 0:00:34.3]} 35. Qe2 {[%clk 0:00:40.6]} 35... f6 {[%clk 0:00:29.7]} 36.
Nc5 {[%clk 0:00:39.4]} 36... fxe5 {[%clk 0:00:23]} 37. dxe5 {[%clk 0:00:39.9]}
37... Ng6 {[%clk 0:00:21.3]} 38. Rxa7 {[%clk 0:00:30.8]} 38... Rgf8 {[%clk
0:00:13.1]} 39. Nd7+ {[%clk 0:00:18.1]} 39... Qxd7 {[%clk 0:00:11.9]} 40. Bd4
{[%clk 0:00:16.6]} 40... Nxe5 {[%clk 0:00:10]} 41. Rga1 {[%clk 0:00:14.9]} 41...
Nf3+ {[%clk 0:00:03.2]} 42. Qxf3 {[%clk 0:00:14.8]} 42... Bxg3+ {[%clk
0:00:02.7]} 43. Qxg3+ {[%clk 0:00:14.7]} 1-0

[Event "*** Titled Tuesday Blitz"]
[Site "Chess.com"]
[Date "2020.05.12"]
[Round "3"]
[White "woodhy"]
[Black "AttilaTurzo"]
[Result "1-0"]
[WhiteElo "2470"]
[BlackElo "2476"]
[TimeControl "180+1"]
[EndTime "10:28:43 PDT"]
[Termination "woodhy won by resignation"]

1. e4 {[%clk 0:02:56.9]} 1... c5 {[%clk 0:02:59.8]} 2. Nf3 {[%clk 0:02:56.6]}
2... Nc6 {[%clk 0:03:00.2]} 3. d4 {[%clk 0:02:57.5]} 3... cxd4 {[%clk
0:03:01.1]} 4. Nxd4 {[%clk 0:02:57.9]} 4... Nf6 {[%clk 0:03:01.8]} 5. Nc3 {[%clk
0:02:53.2]} 5... d6 {[%clk 0:03:02.4]} 6. Bg5 {[%clk 0:02:51.8]} 6... e6 {[%clk
0:03:02.8]} 7. Qd2 {[%clk 0:02:49.1]} 7... a6 {[%clk 0:03:03.4]} 8. Nxc6 {[%clk
0:02:43.4]} 8... bxc6 {[%clk 0:03:03]} 9. Bc4 {[%clk 0:02:42.4]} 9... Be7 {[%clk
0:03:00.7]} 10. O-O {[%clk 0:02:42.4]} 10... d5 {[%clk 0:02:57.1]} 11. exd5
{[%clk 0:02:41]} 11... cxd5 {[%clk 0:02:57]} 12. Bd3 {[%clk 0:02:37.5]} 12...
O-O {[%clk 0:02:56.6]} 13. Rfe1 {[%clk 0:02:28.4]} 13... Bb7 {[%clk 0:02:55.8]}
14. Ne2 {[%clk 0:02:11.3]} 14... e5 {[%clk 0:02:37.8]} 15. Ng3 {[%clk
0:02:04.3]} 15... e4 {[%clk 0:02:33.3]} 16. Bf1 {[%clk 0:02:04.2]} 16... g6
{[%clk 0:02:20.6]} 17. c3 {[%clk 0:02:00.2]} 17... Qb6 {[%clk 0:01:55.3]} 18.
Be3 {[%clk 0:01:45]} 18... Bc5 {[%clk 0:01:54.4]} 19. Bxc5 {[%clk 0:01:43.6]}
19... Qxc5 {[%clk 0:01:55.3]} 20. Ne2 {[%clk 0:01:43.2]} 20... Ng4 {[%clk
0:01:48.1]} 21. Nd4 {[%clk 0:01:38.9]} 21... a5 {[%clk 0:01:42.7]} 22. Qg5
{[%clk 0:01:30.5]} 22... Bc8 {[%clk 0:01:31.6]} 23. h3 {[%clk 0:01:22.8]} 23...
f6 {[%clk 0:01:26.4]} 24. Qh4 {[%clk 0:01:10.6]} 24... Ne5 {[%clk 0:01:22.9]}
25. Kh1 {[%clk 0:01:06.6]} 25... Rf7 {[%clk 0:01:17.9]} 26. Rad1 {[%clk
0:01:04.9]} 26... Ba6 {[%clk 0:01:15.8]} 27. Ne6 {[%clk 0:00:50]} 27... Qb6
{[%clk 0:01:03.2]} 28. Nf4 {[%clk 0:00:47.9]} 28... Qxb2 {[%clk 0:01:02]} 29.
Nxd5 {[%clk 0:00:45]} 29... Bxf1 {[%clk 0:00:50.3]} 30. Rxf1 {[%clk 0:00:43.7]}
30... f5 {[%clk 0:00:44.2]} 31. Qg3 {[%clk 0:00:19.4]} 31... Re8 {[%clk
0:00:34.1]} 32. Qe3 {[%clk 0:00:15.5]} 32... Qxa2 {[%clk 0:00:32.4]} 33. Qb6
{[%clk 0:00:14.3]} 33... Kg7 {[%clk 0:00:29.4]} 34. Nc7 {[%clk 0:00:11.9]} 34...
Qc4 {[%clk 0:00:23.8]} 35. Nxe8+ {[%clk 0:00:08.3]} 35... Kh6 {[%clk 0:00:23.8]}
36. Qe3+ {[%clk 0:00:06.5]} 36... f4 {[%clk 0:00:22.7]} 37. Qd4 {[%clk
0:00:06.6]} 37... Qe6 {[%clk 0:00:21.4]} 38. Nd6 {[%clk 0:00:06.2]} 38... Rd7
{[%clk 0:00:20.6]} 39. Qxe4 {[%clk 0:00:06.6]} 39... Rxd6 {[%clk 0:00:18.4]} 40.
Rxd6 {[%clk 0:00:07.5]} 40... Qxd6 {[%clk 0:00:19.3]} 41. Qxf4+ {[%clk
0:00:07.9]} 41... g5 {[%clk 0:00:19.7]} 42. Qf5 {[%clk 0:00:07.8]} 42... Nc4
{[%clk 0:00:18.7]} 43. Re1 {[%clk 0:00:07.8]} 43... Qf4 {[%clk 0:00:12.7]} 44.
Re6+ {[%clk 0:00:07.3]} 44... Kg7 {[%clk 0:00:13.1]} 45. Re7+ {[%clk 0:00:07.3]}
45... Kg8 {[%clk 0:00:12]} 46. Qxh7+ {[%clk 0:00:07.3]} 1-0

[Event "*** Titled Tuesday Blitz"]
[Site "Chess.com"]
[Date "2020.05.12"]
[Round "3"]
[White "Kapibara_Warri0r"]
[Black "rynos0411"]
[Result "0-1"]
[WhiteElo "2078"]
[BlackElo "2330"]
[TimeControl "180+1"]
[EndTime "10:28:43 PDT"]
[Termination "rynos0411 won by checkmate"]

1. e4 {[%clk 0:03:00.9]} 1... c6 {[%clk 0:02:57.3]} 2. d4 {[%clk 0:03:00.1]}
2... d5 {[%clk 0:02:57.8]} 3. Nc3 {[%clk 0:03:00.8]} 3... dxe4 {[%clk
0:02:54.2]} 4. Nxe4 {[%clk 0:03:01.7]} 4... Nf6 {[%clk 0:02:51.4]} 5. Nxf6+
{[%clk 0:03:00.6]} 5... exf6 {[%clk 0:02:51.6]} 6. c3 {[%clk 0:02:59.9]} 6...
Be6 {[%clk 0:02:50.1]} 7. Bd3 {[%clk 0:02:59.2]} 7... Bd6 {[%clk 0:02:49.8]} 8.
Qf3 {[%clk 0:02:58.5]} 8... Qc7 {[%clk 0:02:41]} 9. Ne2 {[%clk 0:02:51.9]} 9...
Nd7 {[%clk 0:02:38.8]} 10. Bf4 {[%clk 0:02:45.5]} 10... h5 {[%clk 0:02:36.9]}
11. Bxd6 {[%clk 0:02:39.7]} 11... Qxd6 {[%clk 0:02:37.8]} 12. Qg3 {[%clk
0:02:33.2]} 12... Ke7 {[%clk 0:02:24.2]} 13. O-O {[%clk 0:02:21.5]} 13... h4
{[%clk 0:02:21.8]} 14. Qxd6+ {[%clk 0:02:14.6]} 14... Kxd6 {[%clk 0:02:22.7]}
15. b3 {[%clk 0:02:00]} 15... g5 {[%clk 0:02:17.2]} 16. f4 {[%clk 0:01:56.6]}
16... Nb6 {[%clk 0:01:31.3]} 17. f5 {[%clk 0:01:52.5]} 17... Bd7 {[%clk
0:01:29.6]} 18. c4 {[%clk 0:01:49.2]} 18... c5 {[%clk 0:01:28.2]} 19. d5 {[%clk
0:01:40]} 19... Rhe8 {[%clk 0:00:47.5]} 20. Nc3 {[%clk 0:01:37.2]} 20... Re3
{[%clk 0:00:46.3]} 21. Ne4+ {[%clk 0:01:23.7]} 21... Ke5 {[%clk 0:00:40.3]} 22.
Rfe1 {[%clk 0:01:05.2]} 22... Rxd3 {[%clk 0:00:37]} 23. Nxc5+ {[%clk 0:01:01]}
23... Kd4 {[%clk 0:00:36.7]} 24. Nxd3 {[%clk 0:01:00.3]} 24... Kxd3 {[%clk
0:00:36.6]} 25. Rac1 {[%clk 0:00:52.2]} 25... Re8 {[%clk 0:00:29.2]} 26. Red1+
{[%clk 0:00:52]} 26... Ke4 {[%clk 0:00:28.8]} 27. c5 {[%clk 0:00:39.5]} 27...
Nxd5 {[%clk 0:00:24.2]} 28. Rc4+ {[%clk 0:00:38.5]} 28... Ke5 {[%clk 0:00:24.2]}
29. Rcd4 {[%clk 0:00:30.7]} 29... Bc6 {[%clk 0:00:24.2]} 30. Rxd5+ {[%clk
0:00:30.1]} 30... Bxd5 {[%clk 0:00:24.3]} 31. Re1+ {[%clk 0:00:30.1]} 31... Be4
{[%clk 0:00:24.9]} 32. Rd1 {[%clk 0:00:28.4]} 32... Bxf5 {[%clk 0:00:20.7]} 33.
Re1+ {[%clk 0:00:26.9]} 33... Be4 {[%clk 0:00:20.7]} 34. Rd1 {[%clk 0:00:27.3]}
34... Re7 {[%clk 0:00:20.8]} 35. b4 {[%clk 0:00:26]} 35... b6 {[%clk 0:00:19.6]}
36. cxb6 {[%clk 0:00:23]} 36... axb6 {[%clk 0:00:20.5]} 37. a4 {[%clk
0:00:23.3]} 37... Ra7 {[%clk 0:00:20.9]} 38. Ra1 {[%clk 0:00:20.3]} 38... f5
{[%clk 0:00:20.7]} 39. a5 {[%clk 0:00:20]} 39... bxa5 {[%clk 0:00:20.8]} 40.
bxa5 {[%clk 0:00:20.9]} 40... g4 {[%clk 0:00:20.2]} 41. Kf2 {[%clk 0:00:21]}
41... f4 {[%clk 0:00:19.4]} 42. g3 {[%clk 0:00:21.3]} 42... fxg3+ {[%clk
0:00:19.1]} 43. hxg3 {[%clk 0:00:22.2]} 43... h3 {[%clk 0:00:20]} 44. Ke3 {[%clk
0:00:17.3]} 44... h2 {[%clk 0:00:19.5]} 45. Rc1 {[%clk 0:00:05.1]} 45... h1=Q
{[%clk 0:00:18.4]} 46. Rc5+ {[%clk 0:00:04.7]} 46... Bd5 {[%clk 0:00:16.8]} 47.
Kf2 {[%clk 0:00:03.4]} 47... Qf3+ {[%clk 0:00:16.4]} 48. Kg1 {[%clk 0:00:03.1]}
48... Qg2# {[%clk 0:00:16]} 0-1

[Event "*** Titled Tuesday Blitz"]
[Site "Chess.com"]
[Date "2020.05.12"]
[Round "3"]
[White "spela91"]
[Black "CalinGheorghiu"]
[Result "1-0"]
[WhiteElo "2092"]
[BlackElo "2307"]
[TimeControl "180+1"]
[EndTime "10:28:45 PDT"]
[Termination "spela91 won by resignation"]

1. e4 {[%clk 0:03:00.9]} 1... c5 {[%clk 0:02:58]} 2. Nf3 {[%clk 0:03:00.2]} 2...
d6 {[%clk 0:02:57.3]} 3. Bb5+ {[%clk 0:02:58.8]} 3... Nd7 {[%clk 0:02:54.8]} 4.
c3 {[%clk 0:02:50.2]} 4... Nf6 {[%clk 0:02:49.5]} 5. Qe2 {[%clk 0:02:47.3]} 5...
a6 {[%clk 0:02:31.8]} 6. Ba4 {[%clk 0:02:46.2]} 6... b5 {[%clk 0:02:08.6]} 7.
Bc2 {[%clk 0:02:45.8]} 7... e5 {[%clk 0:02:07.7]} 8. O-O {[%clk 0:02:41.4]} 8...
Be7 {[%clk 0:02:06.9]} 9. d4 {[%clk 0:02:41]} 9... O-O {[%clk 0:02:06.5]} 10.
Rd1 {[%clk 0:02:30.2]} 10... Qc7 {[%clk 0:02:04.7]} 11. Nbd2 {[%clk 0:02:23.4]}
11... Re8 {[%clk 0:01:59.8]} 12. Nf1 {[%clk 0:02:20.8]} 12... Bf8 {[%clk
0:01:57.3]} 13. Ng3 {[%clk 0:01:51.6]} 13... g6 {[%clk 0:01:53.8]} 14. h3 {[%clk
0:01:40.3]} 14... Bb7 {[%clk 0:01:51.2]} 15. d5 {[%clk 0:01:34.4]} 15... c4
{[%clk 0:01:44]} 16. Be3 {[%clk 0:01:32.1]} 16... Nc5 {[%clk 0:01:41.9]} 17. Bg5
{[%clk 0:01:21.3]} 17... Bg7 {[%clk 0:01:39.3]} 18. Qe3 {[%clk 0:01:14.8]} 18...
a5 {[%clk 0:01:33.4]} 19. Bh6 {[%clk 0:01:14]} 19... Bh8 {[%clk 0:01:30.9]} 20.
h4 {[%clk 0:01:05.1]} 20... Ng4 {[%clk 0:01:20.7]} 21. Qd2 {[%clk 0:00:55]}
21... Nxh6 {[%clk 0:01:08.6]} 22. Qxh6 {[%clk 0:00:55.9]} 22... Bg7 {[%clk
0:01:09]} 23. Qd2 {[%clk 0:00:51.4]} 23... Bc8 {[%clk 0:00:58.2]} 24. Nh2 {[%clk
0:00:47.8]} 24... Rf8 {[%clk 0:00:50.7]} 25. h5 {[%clk 0:00:47.3]} 25... Rb8
{[%clk 0:00:39]} 26. h6 {[%clk 0:00:45.4]} 26... Bh8 {[%clk 0:00:34]} 27. Qe2
{[%clk 0:00:42.6]} 27... b4 {[%clk 0:00:26]} 28. Rac1 {[%clk 0:00:19.9]} 28...
bxc3 {[%clk 0:00:24.7]} 29. bxc3 {[%clk 0:00:20]} 29... Rb2 {[%clk 0:00:25.1]}
30. Qe3 {[%clk 0:00:17.7]} 30... Rxa2 {[%clk 0:00:22.7]} 31. Nh5 {[%clk
0:00:16.4]} 31... Qe7 {[%clk 0:00:20.4]} 32. Ng3 {[%clk 0:00:11.6]} 32... Bd7
{[%clk 0:00:19]} 33. Rd2 {[%clk 0:00:09.7]} 33... Rb8 {[%clk 0:00:17.9]} 34.
Nhf1 {[%clk 0:00:08.7]} 34... Rbb2 {[%clk 0:00:17.4]} 35. Bd1 {[%clk 0:00:08.5]}
35... Rxd2 {[%clk 0:00:16.1]} 36. Nxd2 {[%clk 0:00:09.4]} 36... Nd3 {[%clk
0:00:16.5]} 37. Rb1 {[%clk 0:00:07.9]} 37... Nb2 {[%clk 0:00:15.1]} 38. Be2
{[%clk 0:00:05.1]} 38... Bb5 {[%clk 0:00:15]} 39. Qb6 {[%clk 0:00:04.7]} 39...
Qd7 {[%clk 0:00:14]} 40. Nxc4 {[%clk 0:00:02.6]} 40... Bxc4 {[%clk 0:00:12.8]}
41. Bxc4 {[%clk 0:00:02.8]} 41... Nxc4 {[%clk 0:00:05.1]} 42. Qb8+ {[%clk
0:00:02.6]} 1-0

[Event "*** Titled Tuesday Blitz"]
[Site "Chess.com"]
[Date "2020.05.12"]
[Round "3"]
[White "RobertPrieb2007"]
[Black "Aygehovit1992"]
[Result "1-0"]
[WhiteElo "2338"]
[BlackElo "2688"]
[TimeControl "180+1"]
[EndTime "10:28:46 PDT"]
[Termination "RobertPrieb2007 won by resignation"]

1. d4 {[%clk 0:03:00.9]} 1... d6 {[%clk 0:02:59.8]} 2. e4 {[%clk 0:02:57.6]}
2... g6 {[%clk 0:02:59.2]} 3. c4 {[%clk 0:02:55.7]} 3... Bg7 {[%clk 0:02:58.6]}
4. Nc3 {[%clk 0:02:55.5]} 4... e5 {[%clk 0:02:55.7]} 5. d5 {[%clk 0:02:49.4]}
5... a5 {[%clk 0:02:54.9]} 6. b3 {[%clk 0:02:46.2]} 6... Na6 {[%clk 0:02:52.4]}
7. Nf3 {[%clk 0:02:42]} 7... f5 {[%clk 0:02:51.4]} 8. Bd3 {[%clk 0:02:38.6]}
8... Nf6 {[%clk 0:02:49.7]} 9. O-O {[%clk 0:02:31.9]} 9... Nc5 {[%clk
0:02:49.4]} 10. Re1 {[%clk 0:02:26.2]} 10... Nxd3 {[%clk 0:02:47.7]} 11. Qxd3
{[%clk 0:02:27]} 11... O-O {[%clk 0:02:44.4]} 12. Ng5 {[%clk 0:02:22.6]} 12...
Nxe4 {[%clk 0:02:31.1]} 13. Ngxe4 {[%clk 0:02:19]} 13... fxe4 {[%clk 0:02:32]}
14. Nxe4 {[%clk 0:02:18.3]} 14... Bf5 {[%clk 0:02:30.2]} 15. f3 {[%clk
0:02:15.6]} 15... a4 {[%clk 0:02:22.6]} 16. b4 {[%clk 0:02:07]} 16... Qh4 {[%clk
0:02:21.5]} 17. Be3 {[%clk 0:01:59.1]} 17... a3 {[%clk 0:01:56.8]} 18. c5 {[%clk
0:01:55.7]} 18... Bxe4 {[%clk 0:01:38.9]} 19. Qxe4 {[%clk 0:01:54.9]} 19... Qxe4
{[%clk 0:01:38.5]} 20. fxe4 {[%clk 0:01:55.8]} 20... Ra4 {[%clk 0:01:38.9]} 21.
Rab1 {[%clk 0:01:52.4]} 21... dxc5 {[%clk 0:01:30.8]} 22. Bxc5 {[%clk
0:01:46.5]} 22... Rf7 {[%clk 0:01:29.7]} 23. Rb3 {[%clk 0:01:42]} 23... b6
{[%clk 0:01:06.9]} 24. Be3 {[%clk 0:01:37.8]} 24... Bf8 {[%clk 0:01:07]} 25. Bd2
{[%clk 0:01:34.6]} 25... Rd7 {[%clk 0:00:59.7]} 26. Rc1 {[%clk 0:01:29]} 26...
c5 {[%clk 0:00:54.2]} 27. dxc6 {[%clk 0:01:22.8]} 27... Rxd2 {[%clk 0:00:51.5]}
28. c7 {[%clk 0:01:20.3]} 28... Ra8 {[%clk 0:00:41.5]} 29. c8=Q {[%clk
0:01:19.4]} 29... Rxc8 {[%clk 0:00:41.6]} 30. Rxc8 {[%clk 0:01:18.6]} 30... Rxa2
{[%clk 0:00:41.8]} 31. Rf3 {[%clk 0:01:13.7]} 31... Kg7 {[%clk 0:00:38.6]} 32.
Rcxf8 {[%clk 0:01:10.1]} 32... Rb2 {[%clk 0:00:38.9]} 33. R8f7+ {[%clk
0:00:59.1]} 33... Kg8 {[%clk 0:00:38.7]} 34. Rf8+ {[%clk 0:00:59.3]} 34... Kg7
{[%clk 0:00:37.9]} 35. R8f7+ {[%clk 0:00:56.1]} 35... Kg8 {[%clk 0:00:37.9]} 36.
Ra7 {[%clk 0:00:55.4]} 36... a2 {[%clk 0:00:34.2]} 37. Rf1 {[%clk 0:00:50.4]}
37... b5 {[%clk 0:00:21.4]} 38. Ra5 {[%clk 0:00:47.3]} 38... Rxb4 {[%clk
0:00:14.9]} 39. Rxa2 {[%clk 0:00:46.3]} 39... Rxe4 {[%clk 0:00:15.7]} 40. Rb2
{[%clk 0:00:43.7]} 40... b4 {[%clk 0:00:15.3]} 41. Rfb1 {[%clk 0:00:42.1]} 41...
Kg7 {[%clk 0:00:14.7]} 42. Rxb4 {[%clk 0:00:42.2]} 42... Re2 {[%clk 0:00:15.1]}
43. R1b2 {[%clk 0:00:41.2]} 43... Re1+ {[%clk 0:00:14.9]} 44. Kf2 {[%clk
0:00:41.4]} 44... Rh1 {[%clk 0:00:15.6]} 45. Re4 {[%clk 0:00:40.1]} 45... Rxh2
{[%clk 0:00:15]} 46. Rxe5 {[%clk 0:00:40.4]} 46... Rh4 {[%clk 0:00:15]} 47. Rb7+
{[%clk 0:00:39]} 47... Kh6 {[%clk 0:00:15]} 48. Ree7 {[%clk 0:00:39.5]} 48...
Rf4+ {[%clk 0:00:12.3]} 49. Kg3 {[%clk 0:00:39.2]} 49... Rf5 {[%clk 0:00:12.2]}
50. Rxh7+ {[%clk 0:00:38.8]} 50... Kg5 {[%clk 0:00:13.1]} 51. Rh4 {[%clk
0:00:37.6]} 51... Ra5 {[%clk 0:00:11.1]} 52. Rg4+ {[%clk 0:00:36.5]} 52... Kh6
{[%clk 0:00:11.2]} 53. Rb6 {[%clk 0:00:34.9]} 53... Kh5 {[%clk 0:00:11.5]} 54.
Rgxg6 {[%clk 0:00:34]} 54... Ra3+ {[%clk 0:00:11.3]} 55. Kh2 {[%clk 0:00:34.2]}
55... Rh3+ {[%clk 0:00:09]} 56. gxh3 {[%clk 0:00:33]} 1-0